[Event "Juniorallsvenskan 2019, Division 1 and 2"]
[Site "Molnlycke kulturhus, Biblioteksgatan 2, Molnlycke, Sweden"]
[Date "2019.11.22"]
[Round "1.8"]
[White "Narva, David"]
[Black "Emmoth, Alfons"]
[Result "0-1"]
[TimeControl "90 minutes + 30 seconds per move from move one"]
[WhiteFideId "24128856"]
[BlackFideId "1718266"]
[WhiteElo "1979"]
[BlackElo "2066"]

1. e4 {[%clk 01:30:56]} {[%emt 00:00:03]} e6 {[%clk 01:30:56]} {[%emt
00:00:04]} 2. Nf3 {[%clk 01:31:20]} {[%emt 00:00:06]} d5 {[%clk 01:31:10]}
{[%emt 00:00:16]} 3. e5 {[%clk 01:31:40]} {[%emt 00:00:10]} c5 {[%clk
01:30:42]} {[%emt 00:00:58]} 4. c3 {[%clk 01:32:04]} {[%emt 00:00:06]} Nc6
{[%clk 01:29:41]} {[%emt 00:01:31]} 5. Na3 {[%clk 01:28:56]} {[%emt 00:03:39]}
Bd7 {[%clk 01:27:06]} {[%emt 00:03:04]} 6. Nc2 {[%clk 01:29:11]} {[%emt
00:00:15]} Nge7 {[%clk 01:22:39]} {[%emt 00:04:57]} 7. d4 {[%clk 01:29:28]}
{[%emt 00:00:13]} Nc8 {[%clk 01:20:26]} {[%emt 00:02:43]} 8. Bd3 {[%clk
01:28:15]} {[%emt 00:01:44]} cxd4 {[%clk 01:14:28]} {[%emt 00:06:28]} 9. cxd4
{[%clk 01:28:39]} {[%emt 00:00:06]} b5 {[%clk 01:14:21]} {[%emt 00:00:37]} 10.
O-O {[%clk 01:27:07]} {[%emt 00:02:01]} Be7 {[%clk 01:12:58]} {[%emt 00:01:53]}
11. Nfe1 {[%clk 01:09:00]} {[%emt 00:18:37]} O-O {[%clk 00:47:16]} {[%emt
00:26:11]} 12. f4 {[%clk 01:04:52]} {[%emt 00:04:39]} f5 {[%clk 00:40:08]}
{[%emt 00:07:39]} 13. exf6 {[%clk 01:04:25]} {[%emt 00:00:57]} Bxf6 {[%clk
00:39:33]} {[%emt 00:01:05]} 14. Nf3 {[%clk 01:03:58]} {[%emt 00:00:57]} Qb6
{[%clk 00:35:02]} {[%emt 00:05:01]} 15. Be3 {[%clk 00:52:39]} {[%emt 00:11:49]}
Nd6 {[%clk 00:29:32]} {[%emt 00:06:00]} 16. Ne5 {[%clk 00:52:18]} {[%emt
00:00:51]} Be8 {[%clk 00:28:46]} {[%emt 00:01:15]} 17. Qg4 {[%clk 00:24:05]}
{[%emt 00:28:43]} Nf5 {[%clk 00:27:16]} {[%emt 00:02:00]} 18. Qh3 {[%clk
00:20:02]} {[%emt 00:04:34]} g6 {[%clk 00:23:31]} {[%emt 00:04:16]} 19. Bf2
{[%clk 00:16:50]} {[%emt 00:03:41]} Rc8 {[%clk 00:21:18]} {[%emt 00:02:43]} 20.
Bxf5 {[%clk 00:11:47]} {[%emt 00:05:34]} exf5 {[%clk 00:21:01]} {[%emt
00:00:47]} 21. Qb3 {[%clk 00:11:00]} {[%emt 00:01:14]} Qd8 {[%clk 00:18:28]}
{[%emt 00:03:05]} 22. Rac1 {[%clk 00:06:39]} {[%emt 00:04:51]} Na5 {[%clk
00:14:03]} {[%emt 00:04:56]} 23. Qf3 {[%clk 00:04:17]} {[%emt 00:02:52]} Nc4
{[%clk 00:12:49]} {[%emt 00:01:44]} 24. Nb4 {[%clk 00:03:57]} {[%emt 00:00:48]}
Bxe5 {[%clk 00:09:41]} {[%emt 00:03:39]} 25. dxe5 {[%clk 00:03:14]} {[%emt
00:01:13]} Bf7 {[%clk 00:10:07]} {[%emt 00:00:05]} 26. Qe2 {[%clk 00:02:30]}
{[%emt 00:01:14]} Qe7 {[%clk 00:09:22]} {[%emt 00:01:14]} 27. Nd3 {[%clk
00:02:17]} {[%emt 00:00:44]} Rfe8 {[%clk 00:06:52]} {[%emt 00:03:00]} 28. b3
{[%clk 00:02:39]} {[%emt 00:00:08]} Nb6 {[%clk 00:06:45]} {[%emt 00:00:38]} 29.
Bd4 {[%clk 00:00:59]} {[%emt 00:02:09]} Nd7 {[%clk 00:04:58]} {[%emt 00:02:17]}
30. Qf2 {[%clk 00:00:57]} {[%emt 00:00:33]} a6 {[%clk 00:04:53]} {[%emt
00:00:34]} 31. g4 {[%clk 00:00:34]} {[%emt 00:00:54]} Be6 {[%clk 00:04:15]}
{[%emt 00:01:08]} 32. g5 {[%clk 00:00:32]} {[%emt 00:00:32]} Qf8 {[%clk
00:04:03]} {[%emt 00:00:42]} 33. Nc5 {[%clk 00:00:32]} {[%emt 00:00:29]} Nxc5
{[%clk 00:03:03]} {[%emt 00:01:29]} 34. Bxc5 {[%clk 00:00:58]} {[%emt
00:00:05]} Qf7 {[%clk 00:03:28]} {[%emt 00:00:05]} 35. h4 {[%clk 00:01:18]}
{[%emt 00:00:10]} Rc6 {[%clk 00:03:26]} {[%emt 00:00:31]} 36. Rc3 {[%clk
00:01:08]} {[%emt 00:00:39]} Rec8 {[%clk 00:03:26]} {[%emt 00:00:30]} 37. b4
{[%clk 00:00:50]} {[%emt 00:00:48]} Qe8 {[%clk 00:03:15]} {[%emt 00:00:41]} 38.
h5 {[%clk 00:00:40]} {[%emt 00:00:41]} gxh5 {[%clk 00:03:12]} {[%emt 00:00:33]}
39. Rh3 {[%clk 00:00:38]} {[%emt 00:00:32]} Bf7 {[%clk 00:03:26]} {[%emt
00:00:16]} 40. Qc2 {[%clk 00:00:34]} {[%emt 00:00:34]} Qe6 {[%clk 00:03:41]}
{[%emt 00:00:14]} 41. Qd3 {[%clk 00:00:34]} {[%emt 00:00:30]} R8c7 {[%clk
00:03:44]} {[%emt 00:00:27]} 42. Qd4 {[%clk 00:00:44]} {[%emt 00:00:21]} Rc8
{[%clk 00:04:00]} {[%emt 00:00:13]} 43. Rh2 {[%clk 00:00:56]} {[%emt 00:00:18]}
Bg6 {[%clk 00:04:13]} {[%emt 00:00:17]} 44. Ra1 {[%clk 00:01:08]} {[%emt
00:00:18]} Bf7 {[%clk 00:04:21]} {[%emt 00:00:22]} 45. a4 {[%clk 00:01:25]}
{[%emt 00:00:12]} bxa4 {[%clk 00:04:41]} {[%emt 00:00:10]} 46. Rxa4 {[%clk
00:01:45]} {[%emt 00:00:10]} Qd7 {[%clk 00:04:28]} {[%emt 00:00:44]} 47. Rha2
{[%clk 00:01:57]} {[%emt 00:00:18]} Qb7 {[%clk 00:04:23]} {[%emt 00:00:35]} 48.
Qd3 {[%clk 00:02:01]} {[%emt 00:00:25]} d4 {[%clk 00:03:04]} {[%emt 00:01:51]}
49. Ra1 {[%clk 00:01:47]} {[%emt 00:00:42]} Qd7 {[%clk 00:02:55]} {[%emt
00:00:40]} 50. Qxd4 {[%clk 00:01:36]} {[%emt 00:00:42]} Qxd4+ {[%clk 00:02:26]}
{[%emt 00:00:59]} 51. Bxd4 {[%clk 00:02:02]} {[%emt 00:00:03]} Rc1+ {[%clk
00:02:49]} {[%emt 00:00:06]} 52. Rxc1 {[%clk 00:01:04]} {[%emt 00:01:29]} Rxc1+
{[%clk 00:03:18]} {[%emt 00:00:02]} 53. Kf2 {[%clk 00:00:38]} {[%emt 00:00:55]}
Bc4 {[%clk 00:03:46]} {[%emt 00:00:02]} 54. e6 {[%clk 00:00:46]} {[%emt
00:00:22]} Rf1+ {[%clk 00:03:52]} {[%emt 00:00:24]} 55. Kg3 {[%clk 00:00:58]}
{[%emt 00:00:18]} h4+ {[%clk 00:04:19]} {[%emt 00:00:03]} 56. Kg2 {[%clk
00:00:45]} {[%emt 00:00:43]} Rxf4 {[%clk 00:04:41]} {[%emt 00:00:08]} 57. Ra5
{[%clk 00:00:31]} {[%emt 00:00:44]} Rxd4 {[%clk 00:04:38]} {[%emt 00:00:33]} 58.
Re5 {[%clk 00:00:32]} {[%emt 00:00:30]} Re4 {[%clk 00:04:44]} {[%emt 00:00:24]}
0-1

[Event "Juniorallsvenskan 2019, Division 1 and 2"]
[Site "Molnlycke kulturhus, Biblioteksgatan 2, Molnlycke, Sweden"]
[Date "2019.11.22"]
[Round "1.9"]
[White "Nilsson, Joakim"]
[Black "Jogstad, Martin"]
[Result "0-1"]
[TimeControl "90 minutes + 30 seconds per move from move one"]
[WhiteTitle "FM"]
[BlackTitle "FM"]
[WhiteFideId "1723383"]
[BlackFideId "1715364"]
[WhiteElo "2288"]
[BlackElo "2305"]

1. Nf3 {[%clk 01:30:55]} {[%emt 00:00:04]} Nf6 {[%clk 01:28:27]} {[%emt
00:02:33]} 2. g3 {[%clk 01:31:12]} {[%emt 00:00:13]} d5 {[%clk 01:28:18]}
{[%emt 00:00:39]} 3. c4 {[%clk 01:31:16]} {[%emt 00:00:28]} c6 {[%clk
01:27:28]} {[%emt 00:01:19]} 4. Bg2 {[%clk 01:31:40]} {[%emt 00:00:06]} dxc4
{[%clk 01:26:52]} {[%emt 00:01:06]} 5. O-O {[%clk 01:30:49]} {[%emt 00:01:21]}
Nbd7 {[%clk 01:25:06]} {[%emt 00:02:15]} 6. Na3 {[%clk 01:22:09]} {[%emt
00:09:10]} Nb6 {[%clk 01:25:06]} {[%emt 00:00:30]} 7. Qc2 {[%clk 01:11:24]}
{[%emt 00:11:15]} Qd5 {[%clk 01:22:48]} {[%emt 00:02:47]} 8. b3 {[%clk
00:59:21]} {[%emt 00:12:35]} Bf5 {[%clk 01:18:35]} {[%emt 00:04:42]} 9. Qd1
{[%clk 00:52:58]} {[%emt 00:06:53]} cxb3 {[%clk 01:12:42]} {[%emt 00:06:23]} 10.
axb3 {[%clk 00:53:22]} {[%emt 00:00:06]} e6 {[%clk 01:11:45]} {[%emt 00:01:27]}
11. d3 {[%clk 00:53:29]} {[%emt 00:00:23]} Qd8 {[%clk 01:10:41]} {[%emt
00:01:32]} 12. Nc4 {[%clk 00:51:57]} {[%emt 00:02:04]} Be7 {[%clk 01:04:20]}
{[%emt 00:06:50]} 13. Na5 {[%clk 00:46:25]} {[%emt 00:06:03]} Qc8 {[%clk
01:00:35]} {[%emt 00:04:14]} 14. Nd4 {[%clk 00:46:11]} {[%emt 00:00:44]} O-O
{[%clk 01:00:08]} {[%emt 00:00:56]} 15. Nxf5 {[%clk 00:46:01]} {[%emt
00:00:41]} exf5 {[%clk 01:00:34]} {[%emt 00:00:04]} 16. Bh3 {[%clk 00:45:09]}
{[%emt 00:01:22]} Rd8 {[%clk 00:43:14]} {[%emt 00:17:50]} 17. Bb2 {[%clk
00:45:04]} {[%emt 00:00:35]} Ne4 {[%clk 00:41:29]} {[%emt 00:02:15]} 18. Qc2
{[%clk 00:42:45]} {[%emt 00:02:49]} Ng5 {[%clk 00:40:16]} {[%emt 00:01:44]} 19.
Bg2 {[%clk 00:42:36]} {[%emt 00:00:39]} Ne6 {[%clk 00:40:01]} {[%emt 00:00:45]}
20. Bh3 {[%clk 00:41:28]} {[%emt 00:01:36]} Ng5 {[%clk 00:30:51]} {[%emt
00:09:40]} 21. Bg2 {[%clk 00:41:53]} {[%emt 00:00:05]} Ne6 {[%clk 00:31:13]}
{[%emt 00:00:08]} 22. Bh3 {[%clk 00:42:14]} {[%emt 00:00:10]} g6 {[%clk
00:28:44]} {[%emt 00:02:59]} 23. e3 {[%clk 00:32:15]} {[%emt 00:10:29]} Nd5
{[%clk 00:19:53]} {[%emt 00:09:21]} 24. Rfd1 {[%clk 00:31:39]} {[%emt
00:01:06]} Bf6 {[%clk 00:19:38]} {[%emt 00:00:44]} 25. Bxf6 {[%clk 00:30:38]}
{[%emt 00:01:33]} Nxf6 {[%clk 00:20:06]} {[%emt 00:00:02]} 26. Bg2 {[%clk
00:27:27]} {[%emt 00:03:40]} Qd7 {[%clk 00:18:33]} {[%emt 00:02:04]} 27. Nc4
{[%clk 00:26:19]} {[%emt 00:01:37]} Nd5 {[%clk 00:16:24]} {[%emt 00:02:38]} 28.
d4 {[%clk 00:26:14]} {[%emt 00:00:36]} Nec7 {[%clk 00:15:22]} {[%emt 00:01:32]}
29. Ne5 {[%clk 00:25:48]} {[%emt 00:00:56]} Qd6 {[%clk 00:14:40]} {[%emt
00:01:12]} 30. h4 {[%clk 00:21:24]} {[%emt 00:04:55]} a6 {[%clk 00:12:13]}
{[%emt 00:02:57]} 31. h5 {[%clk 00:20:47]} {[%emt 00:01:07]} Re8 {[%clk
00:12:12]} {[%emt 00:00:32]} 32. e4 {[%clk 00:19:28]} {[%emt 00:01:49]} fxe4
{[%clk 00:10:33]} {[%emt 00:02:08]} 33. Bxe4 {[%clk 00:19:40]} {[%emt
00:00:18]} Kg7 {[%clk 00:08:17]} {[%emt 00:02:47]} 34. Qd2 {[%clk 00:12:45]}
{[%emt 00:07:26]} Rad8 {[%clk 00:05:48]} {[%emt 00:02:58]} 35. Bf3 {[%clk
00:10:57]} {[%emt 00:02:18]} Qb4 {[%clk 00:03:11]} {[%emt 00:03:07]} 36. Qc2
{[%clk 00:08:45]} {[%emt 00:02:41]} Qc3 {[%clk 00:03:11]} {[%emt 00:00:30]} 37.
Qe2 {[%clk 00:04:11]} {[%emt 00:05:05]} f6 {[%clk 00:02:39]} {[%emt 00:01:02]}
38. hxg6 {[%clk 00:04:01]} {[%emt 00:00:40]} hxg6 {[%clk 00:02:11]} {[%emt
00:00:58]} 39. Be4 {[%clk 00:03:57]} {[%emt 00:00:33]} fxe5 {[%clk 00:02:08]}
{[%emt 00:00:33]} 40. Bxg6 {[%clk 00:03:51]} {[%emt 00:00:36]} Kxg6 {[%clk
00:01:31]} {[%emt 00:01:07]} 41. Qg4+ {[%clk 00:04:05]} {[%emt 00:00:16]} Kf6
{[%clk 00:01:39]} {[%emt 00:00:22]} 42. Qh4+ {[%clk 00:03:44]} {[%emt
00:00:52]} Ke6 {[%clk 00:01:51]} {[%emt 00:00:18]} 43. Re1 {[%clk 00:02:53]}
{[%emt 00:01:21]} Kd7 {[%clk 00:01:51]} {[%emt 00:00:29]} 44. Rac1 {[%clk
00:02:52]} {[%emt 00:00:31]} Qf3 {[%clk 00:01:52]} {[%emt 00:00:28]} 45. Qh3+
{[%clk 00:03:02]} {[%emt 00:00:20]} Ne6 {[%clk 00:01:40]} {[%emt 00:00:42]} 46.
Rxe5 {[%clk 00:03:07]} {[%emt 00:00:25]} Ndf4 {[%clk 00:01:49]} {[%emt
00:00:21]} 0-1

[Event "Juniorallsvenskan 2019, Division 1 and 2"]
[Site "Molnlycke kulturhus, Biblioteksgatan 2, Molnlycke, Sweden"]
[Date "2019.11.22"]
[Round "1.10"]
[White "Bensryd, Hampus"]
[Black "Sundin, Emanuel"]
[Result "1-0"]
[TimeControl "90 minutes + 30 seconds per move from move one"]
[WhiteFideId "1738330"]
[BlackFideId "1719173"]
[WhiteElo "1977"]
[BlackElo "2093"]

1. e4 {[%clk 01:30:52]} {[%emt 00:00:07]} c5 {[%clk 01:28:34]} {[%emt
00:02:26]} 2. Nc3 {[%clk 01:30:24]} {[%emt 00:00:58]} g6 {[%clk 01:27:57]}
{[%emt 00:01:05]} 3. g3 {[%clk 01:29:46]} {[%emt 00:01:11]} Bg7 {[%clk
01:27:50]} {[%emt 00:00:36]} 4. Bg2 {[%clk 01:29:03]} {[%emt 00:01:12]} Nc6
{[%clk 01:27:27]} {[%emt 00:00:53]} 5. d3 {[%clk 01:27:42]} {[%emt 00:01:52]}
d6 {[%clk 01:26:42]} {[%emt 00:01:15]} 6. Nge2 {[%clk 01:24:10]} {[%emt
00:04:01]} e5 {[%clk 01:21:33]} {[%emt 00:05:39]} 7. O-O {[%clk 01:22:28]}
{[%emt 00:02:12]} Nge7 {[%clk 01:19:50]} {[%emt 00:02:13]} 8. Bg5 {[%clk
01:18:08]} {[%emt 00:04:50]} O-O {[%clk 01:18:32]} {[%emt 00:01:47]} 9. Qd2
{[%clk 01:16:50]} {[%emt 00:01:48]} Be6 {[%clk 01:14:26]} {[%emt 00:04:36]} 10.
Nd5 {[%clk 01:00:31]} {[%emt 00:16:49]} f6 {[%clk 01:09:05]} {[%emt 00:05:51]}
11. Be3 {[%clk 00:54:26]} {[%emt 00:06:36]} b5 {[%clk 01:03:01]} {[%emt
00:06:34]} 12. f4 {[%clk 00:49:10]} {[%emt 00:05:46]} Nd4 {[%clk 01:00:57]}
{[%emt 00:02:33]} 13. Nxe7+ {[%clk 00:47:00]} {[%emt 00:02:41]} Qxe7 {[%clk
01:01:15]} {[%emt 00:00:12]} 14. c3 {[%clk 00:46:54]} {[%emt 00:00:36]} Nxe2+
{[%clk 01:00:57]} {[%emt 00:00:48]} 15. Qxe2 {[%clk 00:46:59]} {[%emt
00:00:25]} Rab8 {[%clk 00:59:22]} {[%emt 00:02:05]} 16. Rfd1 {[%clk 00:44:00]}
{[%emt 00:03:28]} f5 {[%clk 00:50:23]} {[%emt 00:09:30]} 17. exf5 {[%clk
00:37:00]} {[%emt 00:07:31]} Bxf5 {[%clk 00:48:25]} {[%emt 00:02:27]} 18. Be4
{[%clk 00:33:26]} {[%emt 00:04:04]} exf4 {[%clk 00:43:39]} {[%emt 00:05:16]} 19.
Bxf4 {[%clk 00:31:59]} {[%emt 00:01:58]} Qd7 {[%clk 00:29:11]} {[%emt
00:14:57]} 20. Qd2 {[%clk 00:25:41]} {[%emt 00:06:48]} Rbd8 {[%clk 00:25:33]}
{[%emt 00:04:08]} 21. Bg5 {[%clk 00:22:20]} {[%emt 00:03:52]} Rde8 {[%clk
00:24:37]} {[%emt 00:01:25]} 22. Bxf5 {[%clk 00:20:46]} {[%emt 00:02:05]} Rxf5
{[%clk 00:22:21]} {[%emt 00:02:47]} 23. Rf1 {[%clk 00:19:19]} {[%emt 00:01:57]}
Rfe5 {[%clk 00:21:00]} {[%emt 00:01:51]} 24. Rae1 {[%clk 00:17:36]} {[%emt
00:02:13]} Qg4 {[%clk 00:20:27]} {[%emt 00:01:03]} 25. Rxe5 {[%clk 00:17:02]}
{[%emt 00:01:05]} dxe5 {[%clk 00:14:29]} {[%emt 00:06:28]} 26. Be3 {[%clk
00:15:49]} {[%emt 00:01:42]} c4 {[%clk 00:13:54]} {[%emt 00:01:05]} 27. dxc4
{[%clk 00:13:25]} {[%emt 00:02:54]} Qxc4 {[%clk 00:13:57]} {[%emt 00:00:27]} 28.
b3 {[%clk 00:12:30]} {[%emt 00:01:25]} Qc6 {[%clk 00:12:02]} {[%emt 00:02:24]}
29. Bxa7 {[%clk 00:10:44]} {[%emt 00:02:17]} Rc8 {[%clk 00:06:00]} {[%emt
00:06:32]} 30. Rf2 {[%clk 00:09:19]} {[%emt 00:01:56]} Qxc3 {[%clk 00:04:14]}
{[%emt 00:02:16]} 31. Qxc3 {[%clk 00:09:13]} {[%emt 00:00:35]} Rxc3 {[%clk
00:04:39]} {[%emt 00:00:06]} 32. Kg2 {[%clk 00:08:02]} {[%emt 00:01:41]} Rd3
{[%clk 00:03:02]} {[%emt 00:02:06]} 33. Bc5 {[%clk 00:05:52]} {[%emt 00:02:40]}
Rd5 {[%clk 00:01:34]} {[%emt 00:01:58]} 34. Ba3 {[%clk 00:05:17]} {[%emt
00:01:05]} Bh6 {[%clk 00:01:21]} {[%emt 00:00:43]} 35. Bb2 {[%clk 00:04:04]}
{[%emt 00:01:42]} e4 {[%clk 00:01:03]} {[%emt 00:00:50]} 36. Re2 {[%clk
00:03:28]} {[%emt 00:01:06]} e3 {[%clk 00:00:40]} {[%emt 00:00:53]} 37. Bc1
{[%clk 00:02:54]} {[%emt 00:01:03]} Re5 {[%clk 00:00:41]} {[%emt 00:00:29]} 38.
Kf3 {[%clk 00:02:44]} {[%emt 00:00:41]} Rf5+ {[%clk 00:01:10]} {[%emt
00:00:01]} 39. Ke4 {[%clk 00:02:11]} {[%emt 00:01:02]} Rf2 {[%clk 00:01:25]}
{[%emt 00:00:15]} 40. Kd3 {[%clk 00:02:39]} {[%emt 00:00:03]} Kf7 {[%clk
00:00:35]} {[%emt 00:01:20]} 41. Bxe3 {[%clk 00:02:53]} {[%emt 00:00:16]} Bxe3
{[%clk 00:00:34]} {[%emt 00:00:31]} 42. Kxe3 {[%clk 00:03:16]} {[%emt
00:00:06]} Rf1 {[%clk 00:00:34]} {[%emt 00:00:30]} 43. Rf2+ {[%clk 00:03:36]}
{[%emt 00:00:10]} Rxf2 {[%clk 00:01:00]} {[%emt 00:00:04]} 44. Kxf2 {[%clk
00:04:01]} {[%emt 00:00:05]} b4 {[%clk 00:01:17]} {[%emt 00:00:13]} 45. Ke3
{[%clk 00:03:54]} {[%emt 00:00:37]} Ke6 {[%clk 00:01:42]} {[%emt 00:00:05]} 46.
Kd4 {[%clk 00:03:53]} {[%emt 00:00:30]} Kf5 {[%clk 00:02:06]} {[%emt 00:00:06]}
47. Kc4 {[%clk 00:04:19]} {[%emt 00:00:04]} Kg4 {[%clk 00:02:27]} {[%emt
00:00:09]} 48. Kxb4 {[%clk 00:04:46]} {[%emt 00:00:04]} Kh3 {[%clk 00:02:54]}
{[%emt 00:00:03]} 49. a4 {[%clk 00:05:12]} {[%emt 00:00:03]} Kxh2 {[%clk
00:01:57]} {[%emt 00:01:27]} 50. a5 {[%clk 00:05:38]} {[%emt 00:00:04]} Kxg3
{[%clk 00:02:24]} {[%emt 00:00:03]} 51. a6 {[%clk 00:05:59]} {[%emt 00:00:09]}
h5 {[%clk 00:02:46]} {[%emt 00:00:09]} 52. a7 {[%clk 00:06:26]} {[%emt
00:00:02]} h4 {[%clk 00:03:13]} {[%emt 00:00:03]} 53. a8=Q {[%clk 00:06:50]}
{[%emt 00:00:06]} h3 {[%clk 00:03:39]} {[%emt 00:00:05]} 54. Qg8 {[%clk
00:06:49]} {[%emt 00:00:30]} 1-0

[Event "Juniorallsvenskan 2019, Division 1 and 2"]
[Site "Molnlycke kulturhus, Biblioteksgatan 2, Molnlycke, Sweden"]
[Date "2019.11.22"]
[Round "1.11"]
[White "Mitra, Akash"]
[Black "Ulles, Jean-Clement"]
[Result "1-0"]
[TimeControl "90 minutes + 30 seconds per move from move one"]
[WhiteFideId "1726714"]
[BlackFideId "26007029"]
[WhiteElo "1975"]
[BlackElo "1943"]

1. d4 {[%clk 01:30:18]} {[%emt 00:00:41]} Nf6 {[%clk 01:30:53]} {[%emt
00:00:07]} 2. Bf4 {[%clk 01:30:34]} {[%emt 00:00:14]} c5 {[%clk 01:30:28]}
{[%emt 00:00:56]} 3. d5 {[%clk 01:28:15]} {[%emt 00:02:49]} b5 {[%clk
01:19:32]} {[%emt 00:11:26]} 4. a4 {[%clk 01:24:30]} {[%emt 00:04:15]} b4
{[%clk 01:18:43]} {[%emt 00:01:19]} 5. c4 {[%clk 01:21:29]} {[%emt 00:03:31]}
d6 {[%clk 01:11:19]} {[%emt 00:07:53]} 6. Nd2 {[%clk 01:20:41]} {[%emt
00:01:18]} g6 {[%clk 01:10:47]} {[%emt 00:01:03]} 7. e4 {[%clk 01:19:05]}
{[%emt 00:02:06]} Bg7 {[%clk 01:10:24]} {[%emt 00:00:53]} 8. Rb1 {[%clk
01:09:28]} {[%emt 00:10:07]} a5 {[%clk 00:57:20]} {[%emt 00:13:35]} 9. Bd3
{[%clk 01:03:38]} {[%emt 00:06:19]} Nbd7 {[%clk 00:54:14]} {[%emt 00:03:36]} 10.
h3 {[%clk 00:56:48]} {[%emt 00:07:20]} Bb7 {[%clk 00:46:41]} {[%emt 00:08:03]}
11. Be3 {[%clk 00:53:30]} {[%emt 00:03:48]} e5 {[%clk 00:43:57]} {[%emt
00:03:15]} 12. f4 {[%clk 00:50:25]} {[%emt 00:03:34]} exf4 {[%clk 00:38:55]}
{[%emt 00:05:32]} 13. Bxf4 {[%clk 00:50:11]} {[%emt 00:00:44]} Qe7 {[%clk
00:38:41]} {[%emt 00:00:44]} 14. Ngf3 {[%clk 00:47:30]} {[%emt 00:03:11]} O-O
{[%clk 00:35:55]} {[%emt 00:03:16]} 15. O-O {[%clk 00:46:06]} {[%emt 00:01:55]}
h6 {[%clk 00:34:47]} {[%emt 00:01:38]} 16. Re1 {[%clk 00:43:53]} {[%emt
00:02:43]} Nh7 {[%clk 00:29:43]} {[%emt 00:05:33]} 17. Re2 {[%clk 00:38:50]}
{[%emt 00:05:33]} Ng5 {[%clk 00:27:56]} {[%emt 00:02:17]} 18. Nxg5 {[%clk
00:33:14]} {[%emt 00:06:07]} hxg5 {[%clk 00:28:17]} {[%emt 00:00:08]} 19. Be3
{[%clk 00:33:27]} {[%emt 00:00:16]} Ne5 {[%clk 00:27:08]} {[%emt 00:01:39]} 20.
Nf3 {[%clk 00:33:01]} {[%emt 00:00:57]} Nxf3+ {[%clk 00:24:44]} {[%emt
00:02:54]} 21. gxf3 {[%clk 00:33:24]} {[%emt 00:00:06]} Bc8 {[%clk 00:22:55]}
{[%emt 00:02:19]} 22. Rg2 {[%clk 00:28:20]} {[%emt 00:05:33]} Bxh3 {[%clk
00:21:44]} {[%emt 00:01:42]} 23. Rg3 {[%clk 00:26:38]} {[%emt 00:02:12]} g4
{[%clk 00:17:55]} {[%emt 00:04:19]} 24. fxg4 {[%clk 00:25:39]} {[%emt
00:01:29]} Qh4 {[%clk 00:18:16]} {[%emt 00:00:09]} 25. Qf3 {[%clk 00:25:38]}
{[%emt 00:00:31]} Bxg4 {[%emt 00:10:39]} 26. Qxg4 {[%clk 00:24:33]} {[%emt
00:01:34]} Qxg4 {[%clk 00:08:02]} {[%emt 00:00:37]} 27. Rxg4 {[%clk 00:24:58]}
{[%emt 00:00:05]} Rae8 {[%clk 00:07:38]} {[%emt 00:00:53]} 28. Bf4 {[%clk
00:20:17]} {[%emt 00:05:11]} Be5 {[%clk 00:02:12]} {[%emt 00:05:57]} 29. Bxe5
{[%clk 00:16:53]} {[%emt 00:03:54]} Rxe5 {[%clk 00:02:40]} 30. Kf2 {[%clk
00:17:01]} {[%emt 00:00:20]} Kg7 {[%clk 00:02:13]} {[%emt 00:00:59]} 31. Kg3
{[%clk 00:10:07]} {[%emt 00:07:24]} f5 {[%clk 00:01:22]} {[%emt 00:01:22]} 32.
exf5 {[%clk 00:08:41]} {[%emt 00:01:56]} Re3+ {[%clk 00:01:47]} {[%emt
00:00:05]} 33. Kf4 {[%clk 00:08:54]} {[%emt 00:00:17]} Rxd3 {[%clk 00:02:05]}
{[%emt 00:00:12]} 34. Rxg6+ {[%clk 00:09:16]} {[%emt 00:00:07]} Kf7 {[%clk
00:02:06]} {[%emt 00:00:29]} 35. Rh1 {[%clk 00:06:13]} {[%emt 00:03:33]} Rd8
{[%clk 00:00:43]} {[%emt 00:01:54]} 36. Rh7+ {[%clk 00:05:57]} {[%emt
00:00:45]} Kf8 {[%clk 00:01:04]} {[%emt 00:00:10]} 37. Kg5 {[%clk 00:05:54]}
{[%emt 00:00:33]} Rg3+ {[%clk 00:00:43]} {[%emt 00:00:51]} 38. Kf6 {[%clk
00:06:02]} {[%emt 00:00:21]} Rxg6+ {[%clk 00:00:51]} {[%emt 00:00:23]} 39. Kxg6
{[%clk 00:05:48]} {[%emt 00:00:44]} Kg8 {[%clk 00:00:45]} {[%emt 00:00:36]} 40.
f6 {[%clk 00:06:04]} {[%emt 00:00:13]} Rf8 {[%clk 00:00:34]} {[%emt 00:00:42]}
41. f7+ {[%clk 00:06:07]} {[%emt 00:00:27]} Rxf7 {[%clk 00:00:57]} {[%emt
00:00:06]} 42. Rxf7 {[%clk 00:06:34]} {[%emt 00:00:04]} 1-0